[Event "NOR-chT Eliteserien 2018-19"]
[Site "Norway"]
[Date "2019.01.13"]
[Round "6"]
[White "Tisdall, Jonathan D"]
[Black "Flermoen, Peter"]
[Result "1-0"]
[ECO "D90"]
[WhiteElo "2399"]
[BlackElo "2314"]
[Annotator "NA"]
[PlyCount "49"]
[EventDate "2018.11.02"]
[EventType "team-tourn"]
[EventCountry "NOR"]
[SourceTitle "playchess.com"]
[Source "ChessBase"]
[SourceQuality "1"]
[TimeControl "40/5400+30:1800+30"]

1. Nf3 {[%emt 0:00:00]} Nf6 {[%emt 0:00:00]} 2. c4 {[%emt 0:00:00]} g6 {[%emt 0:00:00]} 3. Nc3 {[%emt 0:00:00]} d5 {[%emt 0:00:00]} 4. cxd5 {[%emt 0:00:04]} Nxd5 {[%emt 0:00:07]} 5. Qb3 {[%emt 0:00:10]} Nb6 {[%emt 0:01:25]} 6. d4 {[%emt 0:00:13]} Bg7 {[%emt 0:00:30]} 7. Bg5 {[%emt 0:00:09]} O-O {[%emt 0:01:50]} 8. Rd1 {[%emt 0:00:40]} h6 {[%emt 0:07:14]} 9. Bc1 {[%emt 0:07:39]} a5 {[%emt 0:04:45]} 10. e4 {[%emt 0:05:06]} a4 {[%emt 0:02:57]} 11. Qc2 {[%emt 0:01:10]} c6 {[%emt 0:01:49]} 12. Be2 {[%emt 0:03:21]} Be6 {[%emt 0:02:57]} 13. O-O {[%emt 0:02:50]} Na6 {[%emt 0:01:49]} 14. Ne5 {[%emt 0:03:49]} Nb4 {[%emt 0:04:15]} 15. Qb1 {[%emt 0:00:31]} Kh7 {[%emt 0:11:56]} 16. f4 {[%emt 0:03:15]} f5 {[%emt 0:03:56]} 17. g4 {[%emt 0:08:33]} fxe4 {[%emt 0:23:03]} 18. Qxe4 {[%emt 0:10:52]} Bxe5 {[%emt 0:09:36]} 19. dxe5 {[%emt 0:05:24]} N6d5 {[%emt 0:00:34]} 20. f5 {[%emt 0:13:40]} Qb6+ {[%emt 0:02:20]} 21. Kh1 {[%emt 0:03:21]} Nxc3 {[%emt 0:01:34]} 22. bxc3 {[%emt 0:00:06]} Bd5 {[%emt 0:00:26]} 23. Rxd5 {[%emt 0:00:06]} Nxd5 {[%emt 0:00:26]} 24. Bd3 {[%emt 0:00:35]} Nxc3 {[%emt 0:16:59]} 25. Qf4 {[%emt 0:01:05]} 1-0

[Event "NOR-chT Eliteserien 2018-19"]
[Site "Norway"]
[Date "2019.01.13"]
[Round "6"]
[White "Nilsen, Joachim Birger"]
[Black "Mihajlov, Sebastian"]
[Result "1-0"]
[ECO "E97"]
[WhiteElo "2397"]
[BlackElo "2363"]
[Annotator "NA"]
[PlyCount "109"]
[EventDate "2018.11.02"]
[EventType "team-tourn"]
[EventCountry "NOR"]
[SourceTitle "playchess.com"]
[Source "ChessBase"]
[SourceQuality "1"]
[TimeControl "40/5400+30:1800+30"]

1. d4 {[%emt 0:02:07]} Nf6 {[%emt 0:21:03]} 2. Nf3 {[%emt 0:01:02]} g6 {[%emt 0:01:44]} 3. c4 {[%emt 0:00:34]} Bg7 {[%emt 0:00:05]} 4. Nc3 {[%emt 0:01:14]} O-O {[%emt 0:00:06]} 5. e4 {[%emt 0:00:56]} d6 {[%emt 0:00:17]} 6. Be2 {[%emt 0:01:46]} e5 {[%emt 0:00:30]} 7. O-O {[%emt 0:01:16]} Nc6 {[%emt 0:00:11]} 8. d5 {[%emt 0:00:56]} Ne7 {[%emt 0:00:16]} 9. b4 {[%emt 0:00:44]} a5 {[%emt 0:00:25]} 10. Ba3 {[%emt 0:01:37]} axb4 {[%emt 0:01:04]} 11. Bxb4 {[%emt 0:00:40]} b6 {[%emt 0:00:08]} 12. a4 {[%emt 0:00:33]} Re8 {[%emt 0:00:35]} 13. Ne1 {[%emt 0:10:34]} Bf8 {[%emt 0:13:30]} 14. Nd3 {[%emt 0:06:41]} c5 {[%emt 0:00:55]} 15. Ba3 {[%emt 0:00:35]} Bg7 {[%emt 0:00:19]} 16. Bc1 {[%emt 0:02:17]} Rf8 {[%emt 0:07:37]} 17. Qb3 {[%emt 0:04:00]} Nd7 {[%emt 0:03:05]} 18. Nb5 {[%emt 0:10:29]} Nf6 {[%emt 0:00:09]} 19. f3 {[%emt 0:01:23]} Ne8 {[%emt 0:00:18]} 20. Bd2 {[%emt 0:04:51]} f5 {[%emt 0:00:13]} 21. Nf2 {[%emt 0:05:00]} f4 {[%emt 0:04:44]} 22. a5 {[%emt 0:01:14]} bxa5 {[%emt 0:00:05]} 23. Ra4 {[%emt 0:01:20]} g5 {[%emt 0:01:43]} 24. Rfa1 {[%emt 0:02:39]} Ng6 {[%emt 0:01:13]} 25. Rxa5 {[%emt 0:00:54]} Rxa5 {[%emt 0:00:05]} 26. Rxa5 {[%emt 0:00:26]} h5 {[%emt 0:05:35]} 27. Ra8 {[%emt 0:01:20]} Qd7 {[%emt 0:03:56]} 28. Ba5 {[%emt 0:06:47]} Qb7 {[%emt 0:03:18]} 29. Ra7 {[%emt 0:02:04]} Qb8 {[%emt 0:00:01]} 30. Qa3 {[%emt 0:05:19]} Rf7 {[%emt 0:01:36]} 31. Bd8 {[%emt 0:03:41]} Bh6 {[%emt 0:05:44]} 32. Ra8 {[%emt 0:01:55]} Qb7 {[%emt 0:00:02]} 33. Qa5 {[%emt 0:01:07]} Kg7 {[%emt 0:03:00]} 34. Bd1 {[%emt 0:02:39]} Bd7 {[%emt 0:03:44]} 35. Ra7 {[%emt 0:01:54]} Qb8 {[%emt 0:00:05]} 36. Nc7 {[%emt 0:03:31]} g4 {[%emt 0:06:28]} 37. Nxe8+ {[%emt 0:00:43]} Bxe8 {[%emt 0:00:05]} 38. Rxf7+ {[%emt 0:00:05]} Bxf7 {[%emt 0:00:14]} 39. fxg4 {[%emt 0:00:54]} hxg4 {[%emt 0:00:07]} 40. Nxg4 {[%emt 0:01:09]} Qb1 {[%emt 0:00:04]} 41. Qe1 {[%emt 0:32:05]} Be8 {[%emt 0:35:14]} 42. Nxh6 {[%emt 0:00:00]} Kxh6 {[%emt 0:00:00]} 43. Kf1 {[%emt 0:00:00]} Kg7 {[%emt 0:00:00]} 44. h4 {[%emt 0:00:00]} Nh8 {[%emt 0:00:00]} 45. Bf3 {[%emt 0:00:00]} Qa2 {[%emt 0:00:00]} 46. h5 {[%emt 0:00:00]} Qxc4+ {[%emt 0:00:00]} 47. Kg1 {[%emt 0:00:00]} Nf7 {[%emt 0:00:00]} 48. Be7 {[%emt 0:00:00]} Qb4 {[%emt 0:00:00]} 49. Qh4 {[%emt 0:00:10]} Kh7 {[%emt 0:00:00]} 50. Kh2 {[%emt 0:01:39]} Nh6 {[%emt 0:00:00]} 51. Bxd6 {[%emt 0:00:43]} Nf7 {[%emt 0:00:00]} 52. Be7 {[%emt 0:00:27]} Qb6 {[%emt 0:00:00]} 53. d6 {[%emt 0:02:04]} Nxd6 {[%emt 0:00:00]} 54. Qf6 {[%emt 0:00:16]} Nc4 {[%emt 0:00:00]} 55. Qf5+ {[%emt 0:00:16]} 1-0

[Event "NOR-chT Eliteserien 2018-19"]
[Site "Norway"]
[Date "2019.01.13"]
[Round "6"]
[White "Ogaard, Leif"]
[Black "Gabrielsen, Stig"]
[Result "1-0"]
[ECO "D93"]
[WhiteElo "2382"]
[BlackElo "2278"]
[Annotator "NA"]
[PlyCount "81"]
[EventDate "2018.11.02"]
[EventType "team-tourn"]
[EventCountry "NOR"]
[SourceTitle "playchess.com"]
[Source "ChessBase"]
[SourceQuality "1"]
[TimeControl "40/5400+30:1800+30"]

1. c4 {[%emt 0:00:00]} Nf6 {[%emt 0:00:10]} 2. Nf3 {[%emt 0:00:02]} g6 {[%emt 0:00:18]} 3. Nc3 {[%emt 0:00:16]} Bg7 {[%emt 0:00:19]} 4. d4 {[%emt 0:00:07]} d5 {[%emt 0:00:28]} 5. Bf4 {[%emt 0:00:21]} O-O {[%emt 0:00:22]} 6. e3 {[%emt 0:00:05]} c5 {[%emt 0:00:57]} 7. dxc5 {[%emt 0:00:15]} Qa5 {[%emt 0:00:54]} 8. Rc1 {[%emt 0:00:21]} dxc4 {[%emt 0:00:11]} 9. Bxc4 {[%emt 0:00:08]} Qxc5 {[%emt 0:01:15]} 10. Bb3 {[%emt 0:00:10]} Qa5 {[%emt 0:00:42]} 11. O-O {[%emt 0:00:23]} Nc6 {[%emt 0:00:05]} 12. h3 {[%emt 0:08:55]} Qa6 {[%emt 0:10:16]} 13. Ne5 {[%emt 0:10:25]} Nxe5 {[%emt 0:18:52]} 14. Bxe5 {[%emt 0:00:59]} Be6 {[%emt 0:01:19]} 15. Bd4 {[%emt 0:19:22]} Rfd8 {[%emt 0:12:52]} 16. Bxe6 {[%emt 0:02:45]} Qxe6 {[%emt 0:00:08]} 17. Qf3 {[%emt 0:02:42]} a6 {[%emt 0:08:28]} 18. Qxb7 {[%emt 0:14:07]} Rab8 {[%emt 0:06:47]} 19. Qc7 {[%emt 0:03:49]} Ne8 {[%emt 0:01:20]} 20. Qa5 {[%emt 0:11:35]} Bxd4 {[%emt 0:01:05]} 21. exd4 {[%emt 0:00:09]} Rxd4 {[%emt 0:01:50]} 22. Rfe1 {[%emt 0:00:32]} Qd6 {[%emt 0:10:08]} 23. Ne4 {[%emt 0:10:11]} Qf4 {[%emt 0:09:14]} 24. g3 {[%emt 0:03:37]} Qf5 {[%emt 0:03:20]} 25. Qxf5 {[%emt 0:03:52]} gxf5 {[%emt 0:00:09]} 26. Nc5 {[%emt 0:00:23]} Rxb2 {[%emt 0:00:19]} 27. Rxe7 {[%emt 0:00:18]} Nd6 {[%emt 0:00:20]} 28. Nb3 {[%emt 0:02:33]} Ra4 {[%emt 0:07:04]} 29. Rd7 {[%emt 0:00:56]} Nb5 {[%emt 0:01:24]} 30. Nc5 {[%emt 0:01:26]} Raxa2 {[%emt 0:00:15]} 31. Ne6 {[%emt 0:00:13]} h6 {[%emt 0:01:14]} 32. Rc8+ {[%emt 0:00:13]} Kh7 {[%emt 0:00:10]} 33. Rxf7+ {[%emt 0:00:46]} Kg6 {[%emt 0:00:08]} 34. Rcf8 {[%emt 0:00:22]} Rxf2 {[%emt 0:02:25]} 35. Nf4+ {[%emt 0:01:20]} Rxf4 {[%emt 0:00:30]} 36. gxf4 {[%emt 0:00:07]} Nd4 {[%emt 0:00:05]} 37. Rf6+ {[%emt 0:00:48]} Kh5 {[%emt 0:00:09]} 38. Rg8 {[%emt 0:00:49]} a5 {[%emt 0:01:18]} 39. Kf1 {[%emt 0:01:49]} a4 {[%emt 0:00:11]} 40. Rh8 {[%emt 0:01:02]} Kh4 {[%emt 0:00:17]} 41. Rg6 {[%emt 0:01:54]} 1-0

[Event "NOR-chT Eliteserien 2018-19"]
[Site "Norway"]
[Date "2019.01.13"]
[Round "6"]
[White "Dahl, Trygve"]
[Black "Ranaldi, Lucas"]
[Result "0-1"]
[ECO "B13"]
[WhiteElo "2342"]
[BlackElo "2230"]
[Annotator "NA"]
[PlyCount "114"]
[EventDate "2018.11.02"]
[EventType "team-tourn"]
[EventCountry "NOR"]
[SourceTitle "playchess.com"]
[Source "ChessBase"]
[SourceQuality "1"]
[TimeControl "40/5400+30:1800+30"]

1. e4 {[%emt 0:00:00]} c6 {[%emt 0:07:40]} 2. d4 {[%emt 0:00:00]} d5 {[%emt 0:00:06]} 3. exd5 {[%emt 0:00:00]} cxd5 {[%emt 0:00:05]} 4. Bd3 {[%emt 0:00:00]} Nc6 {[%emt 0:00:09]} 5. c3 {[%emt 0:00:00]} Nf6 {[%emt 0:00:10]} 6. h3 {[%emt 0:00:03]} g6 {[%emt 0:00:31]} 7. Nf3 {[%emt 0:02:19]} Bg7 {[%emt 0:01:40]} 8. Bf4 {[%emt 0:00:44]} Bf5 {[%emt 0:01:04]} 9. Bxf5 {[%emt 0:01:48]} gxf5 {[%emt 0:00:08]} 10. Ne5 {[%emt 0:01:35]} O-O {[%emt 0:01:42]} 11. Qe2 {[%emt 0:01:10]} Nxe5 {[%emt 0:08:23]} 12. Bxe5 {[%emt 0:03:09]} Ne4 {[%emt 0:04:24]} 13. Bxg7 {[%emt 0:05:38]} Kxg7 {[%emt 0:00:57]} 14. O-O {[%emt 0:00:10]} Qd6 {[%emt 0:06:00]} 15. Re1 {[%emt 0:01:40]} e6 {[%emt 0:04:10]} 16. Nd2 {[%emt 0:05:48]} Kh8 {[%emt 0:14:26]} 17. f3 {[%emt 0:09:00]} Nxd2 {[%emt 0:00:58]} 18. Qxd2 {[%emt 0:00:07]} Rg8 {[%emt 0:01:18]} 19. Qe3 {[%emt 0:01:07]} Rg3 {[%emt 0:00:50]} 20. Kf1 {[%emt 0:09:01]} Rag8 {[%emt 0:02:52]} 21. Re2 {[%emt 0:00:09]} R8g7 {[%emt 0:06:56]} 22. Qe5 {[%emt 0:01:30]} Qd8 {[%emt 0:00:44]} 23. Qf4 {[%emt 0:04:18]} Qg8 {[%emt 0:06:05]} 24. Qe5 {[%emt 0:00:20]} h6 {[%emt 0:00:52]} 25. Rd1 {[%emt 0:02:01]} Kh7 {[%emt 0:00:48]} 26. Rdd2 {[%emt 0:01:03]} Qd8 {[%emt 0:04:50]} 27. Qf4 {[%emt 0:02:54]} a5 {[%emt 0:13:48]} 28. c4 {[%emt 0:07:25]} Qc8 {[%emt 0:05:53]} 29. c5 {[%emt 0:03:58]} Qc6 {[%emt 0:02:02]} 30. Qe3 {[%emt 0:08:02]} Qb5 {[%emt 0:03:03]} 31. Qb3 {[%emt 0:01:02]} Rxg2 {[%emt 0:01:07]} 32. Qe3 {[%emt 0:07:24]} a4 {[%emt 0:00:27]} 33. a3 {[%emt 0:01:20]} R7g3 {[%emt 0:00:45]} 34. h4 {[%emt 0:03:00]} h5 {[%emt 0:00:15]} 35. Rc2 {[%emt 0:02:05]} Kg6 {[%emt 0:01:10]} 36. Ke1 {[%emt 0:00:41]} Rg1+ {[%emt 0:00:15]} 37. Kd2 {[%emt 0:00:09]} Kh7 {[%emt 0:00:51]} 38. Rf2 {[%emt 0:08:02]} Qa5+ {[%emt 0:00:06]} 39. Qc3 {[%emt 0:00:37]} Qd8 {[%emt 0:00:49]} 40. Qb4 {[%emt 0:03:41]} Qxh4 {[%emt 0:00:29]} 41. Qxa4 {[%emt 0:30:08]} R3g2 {[%emt 0:12:35]} 42. Rxg2 {[%emt 0:00:00]} Rxg2+ {[%emt 0:00:10]} 43. Kd3 {[%emt 0:00:00]} Qf4 {[%emt 0:00:09]} 44. Rxg2 {[%emt 0:00:00]} Qxf3+ {[%emt 0:00:07]} 45. Kc2 {[%emt 0:00:00]} Qxg2+ {[%emt 0:00:04]} 46. Kb3 {[%emt 0:00:00]} h4 {[%emt 0:08:58]} 47. Qd7 {[%emt 0:00:00]} Kg7 {[%emt 0:00:18]} 48. Qxb7 {[%emt 0:00:00]} h3 {[%emt 0:00:07]} 49. c6 {[%emt 0:00:00]} h2 {[%emt 0:00:05]} 50. c7 {[%emt 0:00:00]} h1=Q {[%emt 0:00:06]} 51. c8=Q {[%emt 0:00:00]} Qd1+ {[%emt 0:00:17]} 52. Ka2 {[%emt 0:00:00]} Qe4 {[%emt 0:00:07]} 53. Qxf7+ {[%emt 0:00:00]} Kxf7 {[%emt 0:00:01]} 54. Qd7+ {[%emt 0:00:00]} Kg6 {[%emt 0:00:22]} 55. Qe8+ {[%emt 0:00:00]} Kg5 {[%emt 0:00:17]} 56. Qe7+ {[%emt 0:00:00]} Kg4 {[%emt 0:00:33]} 57. Qg7+ {[%emt 0:00:00]} Kf3 {[%emt 0:00:09]} 0-1

[Event "NOR-chT Eliteserien 2018-19"]
[Site "Norway"]
[Date "2019.01.13"]
[Round "6"]
[White "Gullaksen, Eirik"]
[Black "Getz, Nicolai"]
[Result "0-1"]
[ECO "C78"]
[WhiteElo "2341"]
[BlackElo "2392"]
[Annotator "NA"]
[PlyCount "106"]
[EventDate "2018.11.02"]
[EventType "team-tourn"]
[EventCountry "NOR"]
[SourceTitle "playchess.com"]
[Source "ChessBase"]
[SourceQuality "1"]
[TimeControl "40/5400+30:1800+30"]

1. e4 {[%emt 0:00:00]} e5 {[%emt 0:00:00]} 2. Nf3 {[%emt 0:00:00]} Nc6 {[%emt 0:00:00]} 3. Bb5 {[%emt 0:00:01]} a6 {[%emt 0:00:00]} 4. Ba4 {[%emt 0:00:14]} Nf6 {[%emt 0:00:16]} 5. O-O {[%emt 0:00:41]} b5 {[%emt 0:00:21]} 6. Bb3 {[%emt 0:00:11]} Bb7 {[%emt 0:00:10]} 7. Re1 {[%emt 0:00:34]} Bc5 {[%emt 0:00:31]} 8. d3 {[%emt 0:02:30]} d6 {[%emt 0:01:47]} 9. a3 {[%emt 0:00:34]} h6 {[%emt 0:06:27]} 10. Nc3 {[%emt 0:02:01]} O-O {[%emt 0:07:14]} 11. Nd5 {[%emt 0:03:47]} Nxd5 {[%emt 0:05:22]} 12. Bxd5 {[%emt 0:01:41]} Rb8 {[%emt 0:04:00]} 13. Be3 {[%emt 0:03:34]} Bxe3 {[%emt 0:16:26]} 14. Rxe3 {[%emt 0:01:13]} Ne7 {[%emt 0:04:10]} 15. Bxb7 {[%emt 0:01:57]} Rxb7 {[%emt 0:00:20]} 16. d4 {[%emt 0:00:30]} f6 {[%emt 0:12:14]} 17. b4 {[%emt 0:06:38]} Qe8 {[%emt 0:09:21]} 18. Qd3 {[%emt 0:08:26]} g5 {[%emt 0:03:04]} 19. c4 {[%emt 0:02:21]} Kg7 {[%emt 0:00:54]} 20. Rc1 {[%emt 0:05:03]} Qf7 {[%emt 0:01:21]} 21. c5 {[%emt 0:03:44]} Ra7 {[%emt 0:07:18]} 22. Re2 {[%emt 0:08:39]} Ng6 {[%emt 0:01:14]} 23. g3 {[%emt 0:00:15]} f5 {[%emt 0:06:58]} 24. exf5 {[%emt 0:15:18]} Qxf5 {[%emt 0:00:08]} 25. Qxf5 {[%emt 0:05:33]} Rxf5 {[%emt 0:00:06]} 26. Kg2 {[%emt 0:00:16]} g4 {[%emt 0:00:57]} 27. Nd2 {[%emt 0:00:26]} exd4 {[%emt 0:01:08]} 28. Re4 {[%emt 0:00:36]} dxc5 {[%emt 0:02:25]} 29. Rxc5 {[%emt 0:01:46]} Rxc5 {[%emt 0:00:12]} 30. bxc5 {[%emt 0:00:05]} Ra8 {[%emt 0:04:16]} 31. Rxd4 {[%emt 0:08:43]} Ne5 {[%emt 0:00:05]} 32. f4 {[%emt 0:00:16]} gxf3+ {[%emt 0:00:03]} 33. Nxf3 {[%emt 0:00:10]} Nc4 {[%emt 0:02:33]} 34. a4 {[%emt 0:05:57]} Kf6 {[%emt 0:01:48]} 35. g4 {[%emt 0:05:17]} Re8 {[%emt 0:00:54]} 36. Rf4+ {[%emt 0:01:47]} Kg7 {[%emt 0:00:49]} 37. axb5 {[%emt 0:00:50]} axb5 {[%emt 0:00:04]} 38. Nd4 {[%emt 0:00:48]} Ne3+ {[%emt 0:01:07]} 39. Kg3 {[%emt 0:02:22]} b4 {[%emt 0:00:50]} 40. Nc6 {[%emt 0:01:26]} b3 {[%emt 0:01:00]} 41. Rb4 {[%emt 0:31:08]} Nf1+ {[%emt 0:02:07]} 42. Kf2 {[%emt 0:00:00]} Nxh2 {[%emt 0:06:08]} 43. Na5 {[%emt 0:00:00]} b2 {[%emt 0:00:29]} 44. Kg3 {[%emt 0:00:00]} Nf1+ {[%emt 0:05:40]} 45. Kf4 {[%emt 0:00:00]} Ra8 {[%emt 0:00:36]} 46. Rxb2 {[%emt 0:00:00]} Rxa5 {[%emt 0:00:20]} 47. Rf2 {[%emt 0:00:00]} Ra4+ {[%emt 0:06:28]} 48. Ke5 {[%emt 0:00:00]} Ne3 {[%emt 0:00:07]} 49. Ke6 {[%emt 0:00:00]} Kg6 {[%emt 0:03:13]} 50. Kd7 {[%emt 0:00:00]} Nxg4 {[%emt 0:01:54]} 51. Rg2 {[%emt 0:00:00]} Rc4 {[%emt 0:00:27]} 52. c6 {[%emt 0:00:00]} Kf5 {[%emt 0:00:19]} 53. Kxc7 {[%emt 0:00:00]} Ne5 {[%emt 0:00:06]} 0-1

[Event "NOR-chT Eliteserien 2018-19"]
[Site "Norway"]
[Date "2019.01.13"]
[Round "6"]
[White "Klukin, Kirill"]
[Black "Aulin-Jansson, Joran"]
[Result "1/2-1/2"]
[ECO "D55"]
[WhiteElo "2326"]
[BlackElo "2258"]
[Annotator "NA"]
[PlyCount "175"]
[EventDate "2018.11.02"]
[EventType "team-tourn"]
[EventCountry "NOR"]
[SourceTitle "playchess.com"]
[Source "ChessBase"]
[SourceQuality "1"]
[TimeControl "40/5400+30:1800+30"]

1. Nf3 {[%emt 0:00:00]} d5 {[%emt 0:00:00]} 2. d4 {[%emt 0:00:00]} Nf6 {[%emt 0:00:00]} 3. c4 {[%emt 0:00:00]} e6 {[%emt 0:00:03]} 4. Nc3 {[%emt 0:00:00]} Be7 {[%emt 0:00:34]} 5. Bg5 {[%emt 0:00:16]} h6 {[%emt 0:02:12]} 6. Bh4 {[%emt 0:00:05]} O-O {[%emt 0:00:06]} 7. e3 {[%emt 0:00:02]} Nbd7 {[%emt 0:00:15]} 8. Qc2 {[%emt 0:00:10]} b6 {[%emt 0:00:27]} 9. cxd5 {[%emt 0:00:16]} exd5 {[%emt 0:05:22]} 10. Bd3 {[%emt 0:00:08]} Bb7 {[%emt 0:06:46]} 11. O-O {[%emt 0:00:21]} c5 {[%emt 0:01:28]} 12. Rfd1 {[%emt 0:06:07]} Re8 {[%emt 0:12:49]} 13. dxc5 {[%emt 0:03:48]} bxc5 {[%emt 0:04:08]} 14. Bb5 {[%emt 0:06:14]} a6 {[%emt 0:05:36]} 15. Ba4 {[%emt 0:01:19]} Rf8 {[%emt 0:00:19]} 16. Qf5 {[%emt 0:05:29]} g6 {[%emt 0:05:56]} 17. Qh3 {[%emt 0:06:22]} Nb6 {[%emt 0:01:59]} 18. Bc2 {[%emt 0:15:09]} Bc8 {[%emt 0:03:04]} 19. Qg3 {[%emt 0:00:26]} Nh5 {[%emt 0:01:07]} 20. Bxe7 {[%emt 0:02:15]} Qxe7 {[%emt 0:03:26]} 21. Qe5 {[%emt 0:00:10]} Qxe5 {[%emt 0:00:16]} 22. Nxe5 {[%emt 0:00:01]} Nf6 {[%emt 0:00:20]} 23. a4 {[%emt 0:04:01]} a5 {[%emt 0:08:08]} 24. f4 {[%emt 0:08:38]} Kg7 {[%emt 0:06:55]} 25. Rac1 {[%emt 0:04:28]} Ba6 {[%emt 0:03:39]} 26. Bd3 {[%emt 0:04:53]} Bxd3 {[%emt 0:05:00]} 27. Rxd3 {[%emt 0:00:09]} Rfd8 {[%emt 0:01:48]} 28. Rcd1 {[%emt 0:01:09]} Rac8 {[%emt 0:02:10]} 29. Kf2 {[%emt 0:04:23]} Re8 {[%emt 0:05:00]} 30. Kf3 {[%emt 0:03:04]} g5 {[%emt 0:00:28]} 31. g3 {[%emt 0:10:16]} Kf8 {[%emt 0:01:13]} 32. h4 {[%emt 0:01:42]} gxf4 {[%emt 0:00:54]} 33. gxf4 {[%emt 0:00:08]} Ke7 {[%emt 0:00:08]} 34. Ng4 {[%emt 0:03:39]} Nxg4 {[%emt 0:08:29]} 35. Kxg4 {[%emt 0:00:08]} Kf8 {[%emt 0:00:07]} 36. Nxd5 {[%emt 0:05:33]} Nxa4 {[%emt 0:01:21]} 37. R1d2 {[%emt 0:00:28]} c4 {[%emt 0:03:04]} 38. Ra3 {[%emt 0:01:36]} Nc5 {[%emt 0:00:16]} 39. Nb6 {[%emt 0:03:05]} Nb3 {[%emt 0:02:00]} 40. Rc2 {[%emt 0:01:59]} Rc6 {[%emt 0:02:24]} 41. Nd7+ {[%emt 0:02:27]} Kg7 {[%emt 0:01:24]} 42. Ne5 {[%emt 0:00:39]} Rc5 {[%emt 0:02:08]} 43. Rxc4 {[%emt 0:07:49]} h5+ {[%emt 0:03:50]} 44. Kg3 {[%emt 0:01:25]} Rb5 {[%emt 0:05:11]} 45. Rc7 {[%emt 0:03:10]} Kg8 {[%emt 0:01:30]} 46. Kf2 {[%emt 0:03:35]} Nc5 {[%emt 0:04:04]} 47. Ra1 {[%emt 0:02:07]} Rxe5 {[%emt 0:03:25]} 48. fxe5 {[%emt 0:01:11]} Nd3+ {[%emt 0:00:07]} 49. Kf3 {[%emt 0:03:15]} Nxe5+ {[%emt 0:00:19]} 50. Ke4 {[%emt 0:00:32]} Ng4 {[%emt 0:02:30]} 51. Rf1 {[%emt 0:01:50]} Rb4+ {[%emt 0:02:26]} 52. Kd3 {[%emt 0:00:38]} Rxb2 {[%emt 0:00:45]} 53. Rf5 {[%emt 0:03:42]} Rb3+ {[%emt 0:01:19]} 54. Kd2 {[%emt 0:00:13]} Rb2+ {[%emt 0:01:13]} 55. Kc3 {[%emt 0:01:22]} Rc2+ {[%emt 0:00:19]} 56. Kxc2 {[%emt 0:01:26]} Nxe3+ {[%emt 0:00:06]} 57. Kd2 {[%emt 0:01:51]} Nxf5 {[%emt 0:01:43]} 58. Rc4 {[%emt 0:00:01]} Kg7 {[%emt 0:00:28]} 59. Ke2 {[%emt 0:00:07]} Kg6 {[%emt 0:00:06]} 60. Kf2 {[%emt 0:00:09]} Kf6 {[%emt 0:00:45]} 61. Ra4 {[%emt 0:00:10]} Kg6 {[%emt 0:00:43]} 62. Kg2 {[%emt 0:00:04]} f6 {[%emt 0:02:03]} 63. Kh3 {[%emt 0:00:04]} Nd6 {[%emt 0:00:12]} 64. Rxa5 {[%emt 0:00:08]} Nf5 {[%emt 0:00:05]} 65. Ra4 {[%emt 0:00:12]} Ne3 {[%emt 0:00:19]} 66. Kg3 {[%emt 0:00:17]} Nf5+ {[%emt 0:00:07]} 67. Kf3 {[%emt 0:00:06]} Ng7 {[%emt 0:00:37]} 68. Rb4 {[%emt 0:01:06]} Nf5 {[%emt 0:00:25]} 69. Rf4 {[%emt 0:00:13]} Ng7 {[%emt 0:00:15]} 70. Ke4 {[%emt 0:00:11]} Ne8 {[%emt 0:02:13]} 71. Kd5 {[%emt 0:00:25]} Ng7 {[%emt 0:00:11]} 72. Kd6 {[%emt 0:02:08]} Nf5+ {[%emt 0:00:17]} 73. Ke6 {[%emt 0:00:25]} Ng7+ {[%emt 0:00:04]} 74. Ke7 {[%emt 0:00:07]} Nf5+ {[%emt 0:00:05]} 75. Kf8 {[%emt 0:00:10]} Nxh4 {[%emt 0:02:48]} 76. Rxh4 {[%emt 0:00:13]} Kg5 {[%emt 0:00:06]} 77. Rh1 {[%emt 0:00:12]} h4 {[%emt 0:00:05]} 78. Kf7 {[%emt 0:00:04]} f5 {[%emt 0:00:18]} 79. Ke6 {[%emt 0:03:25]} Kg4 {[%emt 0:01:15]} 80. Rg1+ {[%emt 0:03:38]} Kf4 {[%emt 0:01:42]} 81. Rf1+ {[%emt 0:00:42]} Kg4 {[%emt 0:00:45]} 82. Ke5 {[%emt 0:00:27]} h3 {[%emt 0:00:07]} 83. Kd4 {[%emt 0:00:37]} h2 {[%emt 0:00:29]} 84. Ke3 {[%emt 0:00:36]} Kg3 {[%emt 0:00:10]} 85. Rf3+ {[%emt 0:00:38]} Kg2 {[%emt 0:00:40]} 86. Rf2+ {[%emt 0:00:05]} Kg1 {[%emt 0:00:38]} 87. Rxh2 {[%emt 0:00:04]} Kxh2 {[%emt 0:00:06]} 88. Kf4 {[%emt 0:00:02]} 1/2-1/2

[Event "NOR-chT Eliteserien 2018-19"]
[Site "Norway"]
[Date "2019.01.13"]
[Round "6"]
[White "Storme, Isak"]
[Black "Lundeby, Oyvind Andersen"]
[Result "1/2-1/2"]
[ECO "B07"]
[WhiteElo "2271"]
[BlackElo "2152"]
[Annotator "NA"]
[PlyCount "102"]
[EventDate "2018.11.02"]
[EventType "team-tourn"]
[EventCountry "NOR"]
[SourceTitle "playchess.com"]
[Source "ChessBase"]
[SourceQuality "1"]
[TimeControl "40/5400+30:1800+30"]

1. e4 {[%emt 0:00:00]} d6 {[%emt 0:00:00]} 2. d4 {[%emt 0:00:02]} Nf6 {[%emt 0:00:02]} 3. Nc3 {[%emt 0:00:26]} e5 {[%emt 0:00:21]} 4. dxe5 {[%emt 0:01:13]} dxe5 {[%emt 0:00:03]} 5. Qxd8+ {[%emt 0:00:09]} Kxd8 {[%emt 0:00:03]} 6. Bg5 {[%emt 0:00:10]} Be6 {[%emt 0:01:15]} 7. f4 {[%emt 0:07:58]} exf4 {[%emt 0:02:07]} 8. Nf3 {[%emt 0:02:42]} h6 {[%emt 0:06:10]} 9. Bxf4 {[%emt 0:01:24]} c6 {[%emt 0:11:15]} 10. Nd4 {[%emt 0:06:31]} Nbd7 {[%emt 0:08:47]} 11. O-O-O {[%emt 0:08:22]} Bb4 {[%emt 0:04:39]} 12. Ba6 {[%emt 0:17:16]} Kc8 {[%emt 0:10:17]} 13. Nxe6 {[%emt 0:12:48]} fxe6 {[%emt 0:01:04]} 14. Bc4 {[%emt 0:01:04]} e5 {[%emt 0:03:36]} 15. Bg3 {[%emt 0:00:22]} Kc7 {[%emt 0:01:16]} 16. Rhf1 {[%emt 0:03:22]} Rhe8 {[%emt 0:03:56]} 17. Ne2 {[%emt 0:05:33]} Nxe4 {[%emt 0:14:14]} 18. Rf7 {[%emt 0:01:20]} Re7 {[%emt 0:01:30]} 19. Rxe7 {[%emt 0:04:21]} Bxe7 {[%emt 0:00:03]} 20. Be6 {[%emt 0:00:50]} Nef6 {[%emt 0:02:44]} 21. Nd4 {[%emt 0:01:23]} Bc5 {[%emt 0:11:04]} 22. Nf5 {[%emt 0:01:46]} g6 {[%emt 0:00:42]} 23. Nh4 {[%emt 0:00:25]} g5 {[%emt 0:02:47]} 24. Nf5 {[%emt 0:00:14]} h5 {[%emt 0:00:54]} 25. Bxd7 {[%emt 0:03:10]} Nxd7 {[%emt 0:00:13]} 26. Ng7 {[%emt 0:00:04]} Be3+ {[%emt 0:01:29]} 27. Kb1 {[%emt 0:00:06]} Rh8 {[%emt 0:00:52]} 28. Ne6+ {[%emt 0:02:04]} Kc8 {[%emt 0:00:11]} 29. h4 {[%emt 0:00:59]} gxh4 {[%emt 0:01:30]} 30. Bxh4 {[%emt 0:00:05]} Rg8 {[%emt 0:00:36]} 31. g3 {[%emt 0:00:38]} Nc5 {[%emt 0:01:23]} 32. Re1 {[%emt 0:07:44]} Nxe6 {[%emt 0:00:48]} 33. Rxe3 {[%emt 0:00:05]} Rf8 {[%emt 0:00:31]} 34. b3 {[%emt 0:03:25]} Rf5 {[%emt 0:00:27]} 35. Kb2 {[%emt 0:00:43]} Kc7 {[%emt 0:02:30]} 36. a4 {[%emt 0:03:55]} Nd4 {[%emt 0:01:44]} 37. Re4 {[%emt 0:01:07]} Ne6 {[%emt 0:02:55]} 38. g4 {[%emt 0:00:55]} hxg4 {[%emt 0:00:13]} 39. Rxg4 {[%emt 0:00:04]} Rf4 {[%emt 0:00:13]} 40. Rg6 {[%emt 0:00:21]} Rxh4 {[%emt 0:02:14]} 41. Rxe6 {[%emt 0:04:35]} Re4 {[%emt 0:03:44]} 42. Re7+ {[%emt 0:00:44]} Kb6 {[%emt 0:00:35]} 43. Kc3 {[%emt 0:00:39]} a5 {[%emt 0:02:39]} 44. Kd3 {[%emt 0:01:25]} Rd4+ {[%emt 0:01:57]} 45. Ke3 {[%emt 0:00:07]} Rd1 {[%emt 0:01:25]} 46. Ke2 {[%emt 0:00:54]} Rd5 {[%emt 0:00:53]} 47. c4 {[%emt 0:01:30]} Rc5 {[%emt 0:03:26]} 48. Ke3 {[%emt 0:02:02]} e4 {[%emt 0:01:13]} 49. Kxe4 {[%emt 0:01:21]} Rh5 {[%emt 0:00:10]} 50. Kd4 {[%emt 0:00:10]} Rh4+ {[%emt 0:00:44]} 51. Kc3 {[%emt 0:00:13]} Rh3+ {[%emt 0:00:08]} 1/2-1/2